{"text_format":"3","workbook":"xlsx","n_sheets":4,"sheets":["Контролни точки","Пътна карта","Относно","Данни за диаграмата"],"not_rendered":{"charts":1,"defined_names":2},"read":"whole","date_system":"1900"}

{"sheet":"Контролни точки","index":0,"n_rows":27,"n_cols":5,"rows_kept":27}
["Създайте пътна карта, като въведете важните контролни точки и дейности в този работен лист.\nЗаглавието на този работен лист е в клетка C1. \nИнформацията как да използвате този работен лист, включително инструкции за екранните четци, има в работния лист \"Относно\".\nПродължете да се движите надолу в колона A за по-нататъшни указания.",null,"Контролни точки"]
["Заглавията на таблици са в клетки от C2 до E2. Използвайте опциите за сортиране и филтриране, за да сортирате и да намирате конкретни записи.\nВ таблицата, започвайки от клетка C3, въведете контролни точки с дати и задайте позицията им в диаграмата.\nКолона B е скрита. Диаграмата, генерирана от тези данни с помощта на плъзгач за преглеждане на части от времевата линия. Колона B ви помага да определите кои контролни точки да се показват в диаграмата, когато се увеличи стъпката на плъзгача. \nПредупреждение: Изтриване или промяна в съдържанието на колона B може да наруши целостта на диаграмите, които са вградени в тази работна книга.","№","Позиция","Дата","Контролна точка"]
["Въведете в клетка C1 позиция в диаграмата за датата и контролната точка. Въведете положително число между 1 и 3, за да разположите контролната точка над времевата линия. Въведете отрицателно число между 1 и 3, за да разположите контролната точка под времевата линия.\nВъведете дата и контролната точка или дейността в колони D и E в таблицата.\nПовторете това за всеки нов ред в таблицата вдясно.\nВ редовете от 3 до 26 са предоставени примерни данни. Променете или изтрийте примерното съдържание, за да създадете своя собствена пътна карта.\nПродължете до клетка A27 за следващото указание.",{"$f":"ROW($A1)","v":1},1,{"$f":"TODAY()","v":"2018-06-29"},"Начало"]
[null,{"$f":"ROW($A2)","v":2},-2,{"$f":"D3+10","v":"2018-07-09"},"Анализ на проблемите\nдейност 1"]
[null,3,1,{"$f":"D4+20","v":"2018-07-29"},"Разработване на икономическа обосновка\nдейност 1\nдейност 2"]
[null,4,-1,{"$f":"D5+30","v":"2018-08-28"},"Преглед на презентацията"]
[null,5,{"v":-0.5,"d":"-1"},{"$f":"D6+40","v":"2018-10-07"},"Стартиране от ръководството\nдейност 1\nдейност 2"]
[null,6,2,{"$f":"D7+50","v":"2018-11-26"},"Съгласуване с ръководството\nдейност 1\nдейност 2\nдейност 3"]
[null,7,{"v":0.5,"d":"1"},{"$f":"D8+60","v":"2019-01-25"},"Одобрение от заинтересованите лица"]
[null,8,-1,{"$f":"D9+70","v":"2019-04-05"},"Избор на ресурси"]
[null,9,{"v":0.5,"d":"1"},{"$f":"D10+80","v":"2019-06-24"},"Създаване на екип\nдейност 1 "]
[null,10,-2,{"$f":"D11+90","v":"2019-09-22"},"Стартиране от екипа\nдейност 1 \nдейност 2\nдейност 3\nдейност 4"]
[null,11,3,{"$f":"D12+100","v":"2019-12-31"},"Започване на събирането на данни"]
[null,12,-1,{"$f":"D13+90","v":"2020-03-30"},"Анализ на данните"]
[null,13,1,{"$f":"D14+80","v":"2020-06-18"},"Проектиране"]
[null,14,1,{"$f":"D15+70","v":"2020-08-27"},"Проверка на концепцията"]
[null,15,-3,{"$f":"D16+60","v":"2020-10-26"},"Тест и анализ"]
[null,16,-2,{"$f":"D17+50","v":"2020-12-15"},"Повторно проектиране"]
[null,17,2,{"$f":"D18+40","v":"2021-01-24"},"Преработка"]
[null,18,-1,{"$f":"D19+30","v":"2021-02-23"},"Тест и анализ"]
[null,19,1,{"$f":"D20+20","v":"2021-03-15"},"Повторно проектиране"]
[null,20,-3,{"$f":"D21+10","v":"2021-03-25"},"Преработка"]
[null,21,2,{"$f":"D22+20","v":"2021-04-14"},"Окончателен тест"]
[null,22,1,{"$f":"D23+30","v":"2021-05-14"},"Бета тест"]
[null,23,-3,{"$f":"D24+40","v":"2021-06-23"},"Преглед"]
[null,24,-2,{"$f":"D25+50","v":"2021-08-12"},"Издание за маркетингови цели"]
["За да добавите още редове в таблицата с контролни точки за пътната карта, въведете нов ред над този.\nНяма повече указания в този работен лист.",null,"За да добавите още контролни точки, вмъкнете нови редове над този."]

{"sheet":"Пътна карта","index":1,"n_rows":3,"n_cols":4,"rows_kept":3}
["В този работен лист е диаграмата, показваща контролните точки от работен лист \"Контролни точки\". \nГодините са посочени в клетки B2, C2 и D2, с приложен стил \"Заглавие 3\".\nИзчертават се по 10 контролни точки наведнъж. \nИзползвайте плъзгача в клетки B4 до D4, за да навигирате през пътната карта.\nВремева линия: годините са в клетките от B3 до D3.\nНяма повече указания в този работен лист."]
[]
[null,{"$f":"'Данни за диаграмата'!B20","v":2018},{"$f":"'Данни за диаграмата'!B21","v":""},{"$f":"'Данни за диаграмата'!B22","v":2019}]

{"sheet":"Относно","index":2,"n_rows":5,"n_cols":1,"rows_kept":5}
["За тази работна книга"]
["Ръководство за екранни четци"]
["В тази работна книга има 4 работни листа. \n\nКонтролни точки\nПътна карта\nОтносно\nДанните за диаграмата (скрити)\n\nУказанията за всеки работен лист са дадени в колона A, като се започне от клетка A1 на всеки работен лист. Те са написани със скрит текст. Всяка стъпка ви води през информацията в този ред. Всяка следваща стъпка продължава в клетка A2, A3 и т.н., освен ако изрично не е указано друго. Например текстът с указания може да гласи \"продължете към клетка A6\" за следващата стъпка. \n\nСкритият текст няма да се отпечата.\n\nЗа да премахнете тези указания от всеки работен лист, просто изтрийте колона A.\n"]
["Тази пътна карта използва позиции, за да начертае контролните точки и дейностите. Позициите могат да бъдат използвани, за да се добави тежест на контролната точка или дейността. Просто коригирайте стойностите според предпочитанията си за тежест. Например контролна точка/дейност 3 може да има по-голяма тежест от контролна точка/дейност 2. За да укажете това в диаграмата, направете стойността на позицията за контролна точка/дейност 3 по-висока от тази за контролна точка/дейност 2.  \n"]
["Това е последното указание в този работен лист."]

{"sheet":"Данни за диаграмата","index":3,"n_rows":26,"n_cols":4,"rows_kept":26,"hidden":true}
["Данните за създаване на динамични диаграми са в този работен лист. Не изтривайте този работен лист!\nИзтриването на този работен лист може да компрометира динамичните възможности на работната книга.","Не изтривайте този работен лист!"]
["Заглавието на таблицата е в клетка B2.","Данни за динамични диаграми"]
["Заглавията на таблиците са в клетки от B3 до D3. \nТази таблица се актуализира автоматично въз основа на съдържанието, въведено в работния лист \"Контролни точки\".\nПредупреждение: Промяна или изтриване на съдържание в тази таблица може да компрометира способността за динамично актуализиране на диаграмата \"Пътна карта\" в работния лист \"Пътна карта\".\nПродължете до клетка A15 за следващото указание.","Дата","Събития","Позиция"]
[null,{"$f":"IFERROR(IF(LEN('Контролни точки'!D3)=0,\"\",INDEX(Контролни_точки_за_пътната_карта[],'Контролни точки'!$B3+$B$17,3)),\"\")","v":"2018-06-29"},{"$f":"IFERROR(IF(LEN('Контролни точки'!E3)=0,\"\",INDEX(Контролни_точки_за_пътната_карта[],'Контролни точки'!$B3+$B$17,4)),\"\")","v":"Начало"},{"$f":"IFERROR(INDEX(Контролни_точки_за_пътната_карта[],'Контролни точки'!$B3+$B$17,2),\"\")","v":1}]
[null,{"$f":"IFERROR(IF(LEN('Контролни точки'!D4)=0,\"\",INDEX(Контролни_точки_за_пътната_карта[],'Контролни точки'!$B4+$B$17,3)),\"\")","v":"2018-07-09"},{"$f":"IFERROR(IF(LEN('Контролни точки'!E4)=0,\"\",INDEX(Контролни_точки_за_пътната_карта[],'Контролни точки'!$B4+$B$17,4)),\"\")","v":"Анализ на проблемите\nдейност 1"},{"$f":"IFERROR(INDEX(Контролни_точки_за_пътната_карта[],'Контролни точки'!$B4+$B$17,2),\"\")","v":-2}]
[null,{"$f":"IFERROR(IF(LEN('Контролни точки'!D5)=0,\"\",INDEX(Контролни_точки_за_пътната_карта[],'Контролни точки'!$B5+$B$17,3)),\"\")","v":"2018-07-29"},{"$f":"IFERROR(IF(LEN('Контролни точки'!E5)=0,\"\",INDEX(Контролни_точки_за_пътната_карта[],'Контролни точки'!$B5+$B$17,4)),\"\")","v":"Разработване на икономическа обосновка\nдейност 1\nдейност 2"},{"$f":"IFERROR(INDEX(Контролни_точки_за_пътната_карта[],'Контролни точки'!$B5+$B$17,2),\"\")","v":1}]
[null,{"$f":"IFERROR(IF(LEN('Контролни точки'!D6)=0,\"\",INDEX(Контролни_точки_за_пътната_карта[],'Контролни точки'!$B6+$B$17,3)),\"\")","v":"2018-08-28"},{"$f":"IFERROR(IF(LEN('Контролни точки'!E6)=0,\"\",INDEX(Контролни_точки_за_пътната_карта[],'Контролни точки'!$B6+$B$17,4)),\"\")","v":"Преглед на презентацията"},{"$f":"IFERROR(INDEX(Контролни_точки_за_пътната_карта[],'Контролни точки'!$B6+$B$17,2),\"\")","v":-1}]
[null,{"$f":"IFERROR(IF(LEN('Контролни точки'!D7)=0,\"\",INDEX(Контролни_точки_за_пътната_карта[],'Контролни точки'!$B7+$B$17,3)),\"\")","v":"2018-10-07"},{"$f":"IFERROR(IF(LEN('Контролни точки'!E7)=0,\"\",INDEX(Контролни_точки_за_пътната_карта[],'Контролни точки'!$B7+$B$17,4)),\"\")","v":"Стартиране от ръководството\nдейност 1\nдейност 2"},{"$f":"IFERROR(INDEX(Контролни_точки_за_пътната_карта[],'Контролни точки'!$B7+$B$17,2),\"\")","v":-0.5}]
[null,{"$f":"IFERROR(IF(LEN('Контролни точки'!D8)=0,\"\",INDEX(Контролни_точки_за_пътната_карта[],'Контролни точки'!$B8+$B$17,3)),\"\")","v":"2018-11-26"},{"$f":"IFERROR(IF(LEN('Контролни точки'!E8)=0,\"\",INDEX(Контролни_точки_за_пътната_карта[],'Контролни точки'!$B8+$B$17,4)),\"\")","v":"Съгласуване с ръководството\nдейност 1\nдейност 2\nдейност 3"},{"$f":"IFERROR(INDEX(Контролни_точки_за_пътната_карта[],'Контролни точки'!$B8+$B$17,2),\"\")","v":2}]
[null,{"$f":"IFERROR(IF(LEN('Контролни точки'!D9)=0,\"\",INDEX(Контролни_точки_за_пътната_карта[],'Контролни точки'!$B9+$B$17,3)),\"\")","v":"2019-01-25"},{"$f":"IFERROR(IF(LEN('Контролни точки'!E9)=0,\"\",INDEX(Контролни_точки_за_пътната_карта[],'Контролни точки'!$B9+$B$17,4)),\"\")","v":"Одобрение от заинтересованите лица"},{"$f":"IFERROR(INDEX(Контролни_точки_за_пътната_карта[],'Контролни точки'!$B9+$B$17,2),\"\")","v":0.5}]
[null,{"$f":"IFERROR(IF(LEN('Контролни точки'!D10)=0,\"\",INDEX(Контролни_точки_за_пътната_карта[],'Контролни точки'!$B10+$B$17,3)),\"\")","v":"2019-04-05"},{"$f":"IFERROR(IF(LEN('Контролни точки'!E10)=0,\"\",INDEX(Контролни_точки_за_пътната_карта[],'Контролни точки'!$B10+$B$17,4)),\"\")","v":"Избор на ресурси"},{"$f":"IFERROR(INDEX(Контролни_точки_за_пътната_карта[],'Контролни точки'!$B10+$B$17,2),\"\")","v":-1}]
[null,{"$f":"IFERROR(IF(LEN('Контролни точки'!D11)=0,\"\",INDEX(Контролни_точки_за_пътната_карта[],'Контролни точки'!$B11+$B$17,3)),\"\")","v":"2019-06-24"},{"$f":"IFERROR(IF(LEN('Контролни точки'!E11)=0,\"\",INDEX(Контролни_точки_за_пътната_карта[],'Контролни точки'!$B11+$B$17,4)),\"\")","v":"Създаване на екип\nдейност 1 "},{"$f":"IFERROR(INDEX(Контролни_точки_за_пътната_карта[],'Контролни точки'!$B11+$B$17,2),\"\")","v":0.5}]
[null,{"$f":"IFERROR(IF(LEN('Контролни точки'!D12)=0,\"\",INDEX(Контролни_точки_за_пътната_карта[],'Контролни точки'!$B12+$B$17,3)),\"\")","v":"2019-09-22"},{"$f":"IFERROR(IF(LEN('Контролни точки'!E12)=0,\"\",INDEX(Контролни_точки_за_пътната_карта[],'Контролни точки'!$B12+$B$17,4)),\"\")","v":"Стартиране от екипа\nдейност 1 \nдейност 2\nдейност 3\nдейност 4"},{"$f":"IFERROR(INDEX(Контролни_точки_за_пътната_карта[],'Контролни точки'!$B12+$B$17,2),\"\")","v":-2}]
[]
["Превъртането през пътната карта се извършва с помощта на постъпково растящата стойност. Заглавието за тази възможност е в клетка B15.\nВ клетки B16 и B17 има таблица със заглавка и една-единствена стойност.\nПродължете до клетка A19 за следващото указание.","Възможност за превъртане"]
[null,"Стъпка за ред"]
[null,0]
[]
["Диаграмата \"Пътна карта\" показва годините от времевата линия. За тази цел трябва да въведете годините от списъка \"Контролни точки\". \nЗаглавието за този раздел е \"Година\" в клетка B19. \nСтойностите за годините се генерират автоматично в клетките от C20 до С22.\nПредупреждение: Изтриване или промяна на тези години може да засегне точността на диаграмата \"Пътна карта\".\nПродължете до клетка A24 за следващото указание.","Година"]
[null,{"$f":"IFERROR(YEAR(B4),\"\")","v":2018},"< – година за началната позиция на пътната карта"]
[null,{"$f":"IFERROR(IF(YEAR($B$9)=$B$20,\"\",YEAR($B$9)),\"\")","v":""},"< – година за средния период на пътната карта; обърнете внимание, че тя може да е празна, ако съвпада с годината на началната позиция на пътната карта"]
[null,{"$f":"IFERROR(IF(YEAR($B$13)=$B$20,\"\",YEAR($B$13)),\"\")","v":2019},"< – година за последния период на пътната карта; обърнете внимание, че тя може да е празна, ако съвпада с годината на началната позиция на пътната карта"]
[]
["Пръстеновидните маркери в диаграмата \"Пътна карта\" съдържат датите от данните за динамични диаграми в този работен лист. Датите са: първата дата – в клетка C24, средна дата – в клетка c 25 и последната дата – в клетка C26.\nНяма повече указания в този работен лист.","Първа дата",{"$f":"B4","v":"2018-06-29"}]
[null,"Средна дата",{"$f":"B9","v":"2018-11-26"}]
[null,"Последна дата",{"$f":"B13","v":"2019-09-22"}]